[Event "Live Chess"]
[Site "Chess.com"]
[Date "2023.05.21"]
[Round "-"]
[White "JoRoSaR"]
[Black "slava_ukr"]
[Result "0-1"]
[WhiteElo "1689"]
[BlackElo "2334"]
[TimeControl "300"]
[EndTime "6:29:12 PDT"]
[Termination "slava_ukr won by resignation"]

1. e4 {[%clk 0:04:59.7]} 1... c5 {[%clk 0:04:56.6]} 2. Nf3 {[%clk 0:04:58.2]}
2... Nc6 {[%clk 0:04:55.3]} 3. Bb5 {[%clk 0:04:57.8]} 3... d6 {[%clk 0:04:54.2]}
4. Bxc6+ {[%clk 0:04:56.9]} 4... bxc6 {[%clk 0:04:53.5]} 5. d3 {[%clk
0:04:56.6]} 5... e5 {[%clk 0:04:51.8]} 6. O-O {[%clk 0:04:56]} 6... Nf6 {[%clk
0:04:49.3]} 7. c4 {[%clk 0:04:55.4]} 7... Be7 {[%clk 0:04:48.1]} 8. Nc3 {[%clk
0:04:55]} 8... O-O {[%clk 0:04:47.1]} 9. h3 {[%clk 0:04:54.5]} 9... Be6 {[%clk
0:04:45.7]} 10. Be3 {[%clk 0:04:54.1]} 10... Qd7 {[%clk 0:04:44.6]} 11. Qd2
{[%clk 0:04:53.3]} 11... h6 {[%clk 0:04:43.6]} 12. Nh2 {[%clk 0:04:51.6]} 12...
Nh7 {[%clk 0:04:40.6]} 13. f4 {[%clk 0:04:50.8]} 13... exf4 {[%clk 0:04:39.7]}
14. Bxf4 {[%clk 0:04:49.8]} 14... Bg5 {[%clk 0:04:39]} 15. Rae1 {[%clk
0:04:46.1]} 15... Rae8 {[%clk 0:04:34.9]} 16. Nf3 {[%clk 0:04:43]} 16... Bxf4
{[%clk 0:04:33.6]} 17. Qxf4 {[%clk 0:04:42.9]} 17... f6 {[%clk 0:04:32.4]} 18.
Ne2 {[%clk 0:04:39.5]} 18... Ng5 {[%clk 0:04:29.5]} 19. Ng3 {[%clk 0:04:35.6]}
19... Rb8 {[%clk 0:04:26.9]} 20. b3 {[%clk 0:04:29.4]} 20... a5 {[%clk
0:04:25.5]} 21. Nh4 {[%clk 0:04:22.7]} 21... a4 {[%clk 0:04:17.1]} 22. Ng6
{[%clk 0:04:06.6]} 22... Rf7 {[%clk 0:04:10.6]} 23. h4 {[%clk 0:04:06.1]} 23...
Nh7 {[%clk 0:04:04.2]} 24. Rb1 {[%clk 0:03:59.8]} 24... axb3 {[%clk 0:03:59.9]}
25. axb3 {[%clk 0:03:58.6]} 25... Nf8 {[%clk 0:03:55.2]} 26. h5 {[%clk
0:03:37.1]} 26... Nxg6 {[%clk 0:03:54.1]} 27. hxg6 {[%clk 0:03:36.4]} 27... Rff8
{[%clk 0:03:53.4]} 28. Nf5 {[%clk 0:03:33.6]} 28... Bxf5 {[%clk 0:03:50.5]} 29.
Qxf5 {[%clk 0:03:30.5]} 29... Qxf5 {[%clk 0:03:48.7]} 30. Rxf5 {[%clk
0:03:29.6]} 30... Ra8 {[%clk 0:03:45.6]} 31. b4 {[%clk 0:03:27.3]} 31... cxb4
{[%clk 0:03:35.6]} 32. Rxb4 {[%clk 0:03:26.2]} 32... Rfb8 {[%clk 0:03:34.7]} 33.
Rxb8+ {[%clk 0:03:21.6]} 33... Rxb8 {[%clk 0:03:33.8]} 34. Ra5 {[%clk
0:03:20.9]} 34... Kf8 {[%clk 0:03:25.7]} 35. Ra6 {[%clk 0:03:20]} 35... Rc8
{[%clk 0:03:21.5]} 36. Kf2 {[%clk 0:03:18.6]} 36... d5 {[%clk 0:03:19]} 37. Ke3
{[%clk 0:03:14.7]} 37... dxc4 {[%clk 0:03:13.2]} 38. dxc4 {[%clk 0:03:13.3]}
38... Ke7 {[%clk 0:03:11.1]} 39. c5 {[%clk 0:03:11]} 39... Ke6 {[%clk
0:03:08.6]} 40. Ra7 {[%clk 0:03:10]} 40... f5 {[%clk 0:03:06.4]} 41. Rxg7 {[%clk
0:03:05.3]} 41... fxe4 {[%clk 0:03:05.4]} 42. Kxe4 {[%clk 0:03:04.6]} 42... Kf6
{[%clk 0:03:04.6]} 43. Rd7 {[%clk 0:02:57.3]} 43... Kxg6 {[%clk 0:03:03.4]} 44.
Rd6+ {[%clk 0:02:56.9]} 44... Kg5 {[%clk 0:03:02.5]} 45. Ke5 {[%clk 0:02:51.4]}
45... h5 {[%clk 0:03:01.1]} 46. Re6 {[%clk 0:02:49.8]} 46... h4 {[%clk
0:02:59.1]} 47. Kd6 {[%clk 0:02:47.7]} 47... Kf4 {[%clk 0:02:56.2]} 48. Rh6
{[%clk 0:02:45.2]} 48... Kg3 {[%clk 0:02:54.9]} 49. Rg6+ {[%clk 0:02:44.8]}
49... Kh2 {[%clk 0:02:53.5]} 50. Kd7 {[%clk 0:02:44.3]} 50... Ra8 {[%clk
0:02:52.1]} 51. Kxc6 {[%clk 0:02:43.7]} 51... Ra6+ {[%clk 0:02:51.1]} 52. Kb7
{[%clk 0:02:42.9]} 52... Rxg6 {[%clk 0:02:50.1]} 53. c6 {[%clk 0:02:42.4]} 53...
Rxc6 {[%clk 0:02:49.1]} 54. Kxc6 {[%clk 0:02:41.8]} 54... Kxg2 {[%clk
0:02:48.4]} 0-1

[Event "Live Chess"]
[Site "Chess.com"]
[Date "2023.05.21"]
[Round "-"]
[White "BillythekidFellowes"]
[Black "Duke_of_Bebington"]
[Result "1-0"]
[WhiteElo "2074"]
[BlackElo "1548"]
[TimeControl "300"]
[EndTime "6:29:13 PDT"]
[Termination "BillythekidFellowes won by resignation"]

1. e4 {[%clk 0:04:59.8]} 1... e5 {[%clk 0:04:53.8]} 2. Nf3 {[%clk 0:04:58.4]}
2... Nf6 {[%clk 0:04:52.6]} 3. Nxe5 {[%clk 0:04:53.9]} 3... Nc6 {[%clk
0:04:52.2]} 4. Nxc6 {[%clk 0:04:52.7]} 4... dxc6 {[%clk 0:04:52.1]} 5. d3 {[%clk
0:04:51.9]} 5... Bc5 {[%clk 0:04:50.8]} 6. h3 {[%clk 0:04:47.4]} 6... h5 {[%clk
0:04:41.2]} 7. Nc3 {[%clk 0:04:45.5]} 7... Be6 {[%clk 0:04:27.5]} 8. Bg5 {[%clk
0:04:43.4]} 8... Qd4 {[%clk 0:04:22.9]} 9. Be3 {[%clk 0:04:40.9]} 9... Qe5
{[%clk 0:04:21.8]} 10. d4 {[%clk 0:04:38.9]} 10... Bxd4 {[%clk 0:04:15.7]} 11.
Qxd4 {[%clk 0:04:36.4]} 11... Qxd4 {[%clk 0:04:12]} 12. Bxd4 {[%clk 0:04:36.3]}
12... O-O-O {[%clk 0:04:10]} 13. O-O-O {[%clk 0:04:34.5]} 1-0

[Event "Live Chess"]
[Site "Chess.com"]
[Date "2023.05.21"]
[Round "-"]
[White "CheckThis4"]
[Black "zdanevych"]
[Result "1-0"]
[WhiteElo "2524"]
[BlackElo "1505"]
[TimeControl "300"]
[EndTime "6:29:16 PDT"]
[Termination "CheckThis4 won by resignation"]

1. d4 {[%clk 0:04:58.5]} 1... d5 {[%clk 0:04:58.8]} 2. Nc3 {[%clk 0:04:57.5]}
2... c5 {[%clk 0:04:57.2]} 3. e4 {[%clk 0:04:55.5]} 3... dxe4 {[%clk 0:04:55.9]}
4. d5 {[%clk 0:04:53.4]} 4... e6 {[%clk 0:04:49.5]} 5. Bb5+ {[%clk 0:04:49.7]}
5... Bd7 {[%clk 0:04:44.9]} 6. dxe6 {[%clk 0:04:48.4]} 6... fxe6 {[%clk
0:04:40.9]} 7. Qh5+ {[%clk 0:04:41]} 7... g6 {[%clk 0:04:34.6]} 8. Qe5 {[%clk
0:04:39.2]} 8... Qf6 {[%clk 0:04:29.5]} 9. Qxe4 {[%clk 0:04:33.7]} 9... Nc6
{[%clk 0:04:19.7]} 10. Nf3 {[%clk 0:04:30.5]} 10... O-O-O {[%clk 0:03:55.1]} 11.
Bg5 {[%clk 0:04:27]} 11... Qf5 {[%clk 0:03:48.4]} 12. Bxd8 {[%clk 0:04:21.4]}
12... Kxd8 {[%clk 0:03:38.9]} 13. O-O-O {[%clk 0:04:14.7]} 13... Kc7 {[%clk
0:03:36]} 14. Rxd7+ {[%clk 0:04:05.8]} 14... Kxd7 {[%clk 0:03:28.5]} 15. Ne5+
{[%clk 0:04:05.2]} 15... Kc8 {[%clk 0:03:24.5]} 16. Bxc6 {[%clk 0:04:01.2]}
16... Qxe4 {[%clk 0:03:17.6]} 17. Bxe4 {[%clk 0:03:59.1]} 17... Nf6 {[%clk
0:03:15.9]} 18. Rd1 {[%clk 0:03:52.5]} 18... Bg7 {[%clk 0:03:11.9]} 19. f4
{[%clk 0:03:50.7]} 19... Nxe4 {[%clk 0:03:06.7]} 20. Nxe4 {[%clk 0:03:49.2]}
20... Rf8 {[%clk 0:03:02.7]} 21. g3 {[%clk 0:03:48]} 21... Bxe5 {[%clk
0:02:57.4]} 22. fxe5 {[%clk 0:03:46.4]} 1-0

[Event "Live Chess"]
[Site "Chess.com"]
[Date "2023.05.21"]
[Round "-"]
[White "ameetghasi100"]
[Black "domrobson"]
[Result "1-0"]
[WhiteElo "2579"]
[BlackElo "1760"]
[TimeControl "300"]
[EndTime "6:29:28 PDT"]
[Termination "ameetghasi100 won by resignation"]

1. d4 {[%clk 0:04:59]} 1... Nf6 {[%clk 0:04:58.5]} 2. c4 {[%clk 0:04:58.9]} 2...
e6 {[%clk 0:04:56.8]} 3. Nf3 {[%clk 0:04:58.8]} 3... d5 {[%clk 0:04:55.9]} 4.
Nbd2 {[%clk 0:04:58.7]} 4... c6 {[%clk 0:04:55.1]} 5. g3 {[%clk 0:04:58.6]} 5...
Nbd7 {[%clk 0:04:53.7]} 6. Bg2 {[%clk 0:04:58.5]} 6... Bd6 {[%clk 0:04:52.9]} 7.
O-O {[%clk 0:04:58.4]} 7... O-O {[%clk 0:04:51.8]} 8. e4 {[%clk 0:04:58.3]} 8...
dxe4 {[%clk 0:04:50.6]} 9. Ng5 {[%clk 0:04:57.7]} 9... b6 {[%clk 0:04:46.9]} 10.
Ndxe4 {[%clk 0:04:56.2]} 10... Nxe4 {[%clk 0:04:45.4]} 11. Bxe4 {[%clk
0:04:56.1]} 11... h6 {[%clk 0:04:34.1]} 12. Bxc6 {[%clk 0:04:55.1]} 12... Rb8
{[%clk 0:04:27.3]} 13. Ne4 {[%clk 0:04:54.5]} 13... Qc7 {[%clk 0:04:25.7]} 14.
Nxd6 {[%clk 0:04:53.5]} 14... Qxc6 {[%clk 0:04:23.7]} 15. Nxc8 {[%clk 0:04:53]}
15... Rbxc8 {[%clk 0:04:22.4]} 16. b3 {[%clk 0:04:52.6]} 16... Rfd8 {[%clk
0:04:20.7]} 17. Be3 {[%clk 0:04:51.3]} 17... Ne5 {[%clk 0:04:17.7]} 18. f4
{[%clk 0:04:45.4]} 18... Ng6 {[%clk 0:04:10.4]} 19. f5 {[%clk 0:04:39.5]} 19...
exf5 {[%clk 0:04:06.7]} 20. d5 {[%clk 0:04:36.6]} 20... Qe8 {[%clk 0:04:03.2]}
21. Bd4 {[%clk 0:04:34.5]} 21... Qe4 {[%clk 0:03:58]} 22. Re1 {[%clk 0:04:33.7]}
22... Qg4 {[%clk 0:03:56.7]} 23. Qxg4 {[%clk 0:04:30.7]} 23... fxg4 {[%clk
0:03:54.8]} 24. Rad1 {[%clk 0:04:30.3]} 24... Re8 {[%clk 0:03:53.6]} 25. Rxe8+
{[%clk 0:04:28.3]} 25... Rxe8 {[%clk 0:03:51.9]} 26. Kf2 {[%clk 0:04:28.2]}
26... Rd8 {[%clk 0:03:50.9]} 27. b4 {[%clk 0:04:26.6]} 27... Nf8 {[%clk
0:03:46.9]} 28. a4 {[%clk 0:04:24.5]} 28... Rc8 {[%clk 0:03:44.4]} 29. c5 {[%clk
0:04:23.3]} 29... bxc5 {[%clk 0:03:43.4]} 30. bxc5 {[%clk 0:04:23]} 30... Nd7
{[%clk 0:03:41.2]} 31. c6 {[%clk 0:04:22]} 31... Nb6 {[%clk 0:03:40.2]} 32. Bxb6
{[%clk 0:04:21.1]} 32... axb6 {[%clk 0:03:39.2]} 33. d6 {[%clk 0:04:21]} 33...
Rxc6 {[%clk 0:03:37.8]} 34. d7 {[%clk 0:04:20.9]} 34... Rc3 {[%clk 0:03:36.5]}
1-0

[Event "Live Chess"]
[Site "Chess.com"]
[Date "2023.05.21"]
[Round "-"]
[White "LiamClery2020"]
[Black "Tushinskiy"]
[Result "1-0"]
[WhiteElo "1975"]
[BlackElo "2206"]
[TimeControl "300"]
[EndTime "6:29:48 PDT"]
[Termination "LiamClery2020 won on time"]

1. e4 {[%clk 0:04:57.5]} 1... e5 {[%clk 0:04:58.3]} 2. Nc3 {[%clk 0:04:56.4]}
2... d6 {[%clk 0:04:57.5]} 3. d4 {[%clk 0:04:55.2]} 3... Nd7 {[%clk 0:04:55.3]}
4. Nf3 {[%clk 0:04:54]} 4... Ngf6 {[%clk 0:04:53.3]} 5. dxe5 {[%clk 0:04:48.4]}
5... dxe5 {[%clk 0:04:51.7]} 6. Be3 {[%clk 0:04:45.6]} 6... Bb4 {[%clk
0:04:50.5]} 7. Bd3 {[%clk 0:04:43.9]} 7... c6 {[%clk 0:04:49.3]} 8. Bd2 {[%clk
0:04:43]} 8... O-O {[%clk 0:04:46.6]} 9. Ne2 {[%clk 0:04:42.3]} 9... Bc5 {[%clk
0:04:42.4]} 10. Ng3 {[%clk 0:04:40.7]} 10... Nb6 {[%clk 0:04:39.8]} 11. O-O
{[%clk 0:04:32.5]} 11... Qc7 {[%clk 0:04:38.1]} 12. Bg5 {[%clk 0:04:27.3]} 12...
Nfd7 {[%clk 0:04:33.7]} 13. a3 {[%clk 0:04:15.5]} 13... f6 {[%clk 0:04:31]} 14.
Be3 {[%clk 0:04:13.9]} 14... Bxe3 {[%clk 0:04:29.4]} 15. fxe3 {[%clk 0:04:13.8]}
15... Nc5 {[%clk 0:04:28]} 16. Nh4 {[%clk 0:04:05.7]} 16... Be6 {[%clk
0:04:24.4]} 17. Nhf5 {[%clk 0:04:02.4]} 17... g6 {[%clk 0:04:22.1]} 18. Nh4
{[%clk 0:03:49.8]} 18... Rad8 {[%clk 0:04:19.3]} 19. Qe2 {[%clk 0:03:47.6]}
19... Nxd3 {[%clk 0:04:17.7]} 20. cxd3 {[%clk 0:03:46.2]} 20... Qd7 {[%clk
0:04:03.9]} 21. Rad1 {[%clk 0:03:41.5]} 21... Bb3 {[%clk 0:03:47.7]} 22. Rc1
{[%clk 0:03:30.9]} 22... Qxd3 {[%clk 0:03:44]} 23. Qf3 {[%clk 0:03:29.6]} 23...
Qd7 {[%clk 0:03:29]} 24. Rc3 {[%clk 0:03:07.5]} 24... Be6 {[%clk 0:01:17.4]} 25.
Rcc1 {[%clk 0:03:01.3]} 25... Kg7 {[%clk 0:01:00.3]} 26. Rfd1 {[%clk 0:02:56.6]}
26... Qe7 {[%clk 0:00:58.9]} 27. Re1 {[%clk 0:02:49]} 27... Qd7 {[%clk
0:00:56.3]} 28. Red1 {[%clk 0:02:47]} 28... Qc8 {[%clk 0:00:55.4]} 29. Ne2
{[%clk 0:02:36]} 29... Bg4 {[%clk 0:00:53.6]} 30. Qf2 {[%clk 0:02:32.1]} 30...
Bxe2 {[%clk 0:00:47.8]} 31. Qxe2 {[%clk 0:02:30.7]} 31... Rxd1+ {[%clk
0:00:44.9]} 32. Rxd1 {[%clk 0:02:30.6]} 32... Rd8 {[%clk 0:00:44.3]} 33. Rc1
{[%clk 0:02:22.2]} 33... Qd7 {[%clk 0:00:42.7]} 34. Rf1 {[%clk 0:02:15.1]} 34...
Qd2 {[%clk 0:00:37.5]} 35. Qf3 {[%clk 0:02:10]} 35... Rd6 {[%clk 0:00:36.3]} 36.
Qg3 {[%clk 0:02:07]} 36... Kf7 {[%clk 0:00:34.2]} 37. Qxe5 {[%clk 0:01:47.2]}
37... Qxe3+ {[%clk 0:00:31.9]} 38. Kh1 {[%clk 0:01:46.3]} 38... Qe2 {[%clk
0:00:26.1]} 39. Qf4 {[%clk 0:01:39.8]} 39... g5 {[%clk 0:00:19.6]} 40. Qf3
{[%clk 0:01:33.4]} 40... Qxf3 {[%clk 0:00:17.2]} 41. Nxf3 {[%clk 0:01:33.3]}
41... Nc4 {[%clk 0:00:16.3]} 42. Nxg5+ {[%clk 0:01:30.3]} 42... Kg6 {[%clk
0:00:15.1]} 43. Nf3 {[%clk 0:01:29.7]} 43... Nd2 {[%clk 0:00:13.4]} 44. Rd1
{[%clk 0:01:21.4]} 44... Nxe4 {[%clk 0:00:10.7]} 45. Rf1 {[%clk 0:01:19.1]}
45... f5 {[%clk 0:00:08.9]} 46. Nh4+ {[%clk 0:01:18.1]} 46... Kh6 {[%clk
0:00:07.1]} 47. Nxf5+ {[%clk 0:01:17.2]} 1-0

[Event "Live Chess"]
[Site "Chess.com"]
[Date "2023.05.21"]
[Round "-"]
[White "MovebyMove"]
[Black "seasidecastle27"]
[Result "1-0"]
[WhiteElo "2444"]
[BlackElo "1881"]
[TimeControl "300"]
[EndTime "6:29:49 PDT"]
[Termination "MovebyMove won by resignation"]

1. e4 {[%clk 0:04:56.6]} 1... d6 {[%clk 0:04:57.2]} 2. d4 {[%clk 0:04:54.6]}
2... e5 {[%clk 0:04:55.5]} 3. Nf3 {[%clk 0:04:52.3]} 3... Bg4 {[%clk 0:04:53]}
4. dxe5 {[%clk 0:04:50.5]} 4... Nc6 {[%clk 0:04:51.6]} 5. Bb5 {[%clk 0:04:46.9]}
5... Qe7 {[%clk 0:04:45.5]} 6. Bxc6+ {[%clk 0:04:28.9]} 6... bxc6 {[%clk
0:04:43.6]} 7. O-O {[%clk 0:04:27.7]} 7... dxe5 {[%clk 0:04:35.3]} 8. Nbd2
{[%clk 0:04:23.8]} 8... Nf6 {[%clk 0:04:33]} 9. Qe2 {[%clk 0:04:22.5]} 9... g6
{[%clk 0:04:26.4]} 10. b3 {[%clk 0:04:04.5]} 10... Bg7 {[%clk 0:04:23.2]} 11.
Nc4 {[%clk 0:04:03.4]} 11... Nd7 {[%clk 0:04:05]} 12. Qe3 {[%clk 0:03:56]} 12...
Qf6 {[%clk 0:03:49.5]} 13. Bb2 {[%clk 0:03:43.5]} 13... Bxf3 {[%clk 0:03:46.3]}
14. Qxf3 {[%clk 0:03:42.2]} 14... Qxf3 {[%clk 0:03:43.5]} 15. gxf3 {[%clk
0:03:41.4]} 15... O-O {[%clk 0:03:42.2]} 16. Rfd1 {[%clk 0:03:38.5]} 16... Rad8
{[%clk 0:03:39.2]} 17. Rd3 {[%clk 0:03:35.3]} 17... Nc5 {[%clk 0:03:20.3]} 18.
Rxd8 {[%clk 0:03:33.7]} 18... Rxd8 {[%clk 0:03:18.6]} 19. Bxe5 {[%clk
0:03:32.6]} 19... Bxe5 {[%clk 0:03:13.5]} 20. Nxe5 {[%clk 0:03:31.1]} 20... Rd2
{[%clk 0:03:11.5]} 21. Rc1 {[%clk 0:03:29.3]} 21... Ne6 {[%clk 0:03:05.9]} 22.
Nc4 {[%clk 0:03:00.7]} 22... Rd4 {[%clk 0:02:54.8]} 23. Kf1 {[%clk 0:02:53]}
23... Nf4 {[%clk 0:02:46]} 24. Ke1 {[%clk 0:02:34.1]} 24... Ng2+ {[%clk
0:02:40.8]} 25. Ke2 {[%clk 0:02:32.7]} 25... f5 {[%clk 0:02:32.8]} 26. exf5
{[%clk 0:02:27.3]} 26... Rh4 {[%clk 0:02:26.7]} 27. fxg6 {[%clk 0:02:22.1]}
27... hxg6 {[%clk 0:02:25.4]} 28. f4 {[%clk 0:02:02.9]} 28... Nxf4+ {[%clk
0:02:22.5]} 29. Kf3 {[%clk 0:02:01.4]} 29... Nd5 {[%clk 0:02:18.2]} 30. Re1
{[%clk 0:01:50.4]} 30... Rxh2 {[%clk 0:02:12.8]} 31. Re6 {[%clk 0:01:43.7]}
31... Rh3+ {[%clk 0:02:02.9]} 32. Kg4 {[%clk 0:01:41]} 32... Rc3 {[%clk
0:02:00.8]} 33. Rxg6+ {[%clk 0:01:34.7]} 33... Kf7 {[%clk 0:01:59]} 34. Rxc6
{[%clk 0:01:33.2]} 34... Nf6+ {[%clk 0:01:41.5]} 35. Kf4 {[%clk 0:01:22]} 35...
Rxc2 {[%clk 0:01:38.1]} 36. Ne5+ {[%clk 0:01:19.5]} 36... Ke7 {[%clk 0:01:17.8]}
37. Rxc2 {[%clk 0:01:17.2]} 1-0

[Event "Live Chess"]
[Site "Chess.com"]
[Date "2023.05.21"]
[Round "-"]
[White "LL220284LL"]
[Black "JohanKjeldahl"]
[Result "1-0"]
[WhiteElo "2272"]
[BlackElo "1881"]
[TimeControl "300"]
[EndTime "6:29:59 PDT"]
[Termination "LL220284LL won by resignation"]

1. d4 {[%clk 0:04:58.8]} 1... Nf6 {[%clk 0:04:58.5]} 2. Bg5 {[%clk 0:04:57.4]}
2... e6 {[%clk 0:04:57]} 3. e4 {[%clk 0:04:56.4]} 3... h6 {[%clk 0:04:54.5]} 4.
Bxf6 {[%clk 0:04:55.6]} 4... Qxf6 {[%clk 0:04:53.3]} 5. Nc3 {[%clk 0:04:54.7]}
5... d5 {[%clk 0:04:51.1]} 6. e5 {[%clk 0:04:53.1]} 6... Qd8 {[%clk 0:04:49.5]}
7. f4 {[%clk 0:04:50.9]} 7... c5 {[%clk 0:04:48.4]} 8. Nf3 {[%clk 0:04:50.1]}
8... Nc6 {[%clk 0:04:46.8]} 9. Ne2 {[%clk 0:04:46.4]} 9... a6 {[%clk 0:04:44.6]}
10. c3 {[%clk 0:04:45.4]} 10... Bd7 {[%clk 0:04:42.9]} 11. g3 {[%clk 0:04:42.4]}
11... Be7 {[%clk 0:04:40.4]} 12. Bg2 {[%clk 0:04:41.6]} 12... b5 {[%clk
0:04:39]} 13. O-O {[%clk 0:04:40]} 13... O-O {[%clk 0:04:37.8]} 14. g4 {[%clk
0:04:38.7]} 14... f6 {[%clk 0:04:35]} 15. Ng3 {[%clk 0:04:33.7]} 15... fxe5
{[%clk 0:04:31.6]} 16. dxe5 {[%clk 0:04:23.9]} 16... Qb6 {[%clk 0:04:25.6]} 17.
f5 {[%clk 0:04:22.3]} 17... exf5 {[%clk 0:04:20.2]} 18. Qxd5+ {[%clk 0:04:20.7]}
18... Kh8 {[%clk 0:04:15]} 19. Qxd7 {[%clk 0:04:19.5]} 19... Rad8 {[%clk
0:04:12.2]} 20. Qe6 {[%clk 0:04:18.2]} 20... c4+ {[%clk 0:04:09.9]} 21. Kh1
{[%clk 0:04:17]} 21... fxg4 {[%clk 0:04:07.8]} 22. Nd4 {[%clk 0:04:12.6]} 22...
Nxd4 {[%clk 0:04:02.4]} 23. Qxb6 {[%clk 0:04:10.7]} 1-0

[Event "Live Chess"]
[Site "Chess.com"]
[Date "2023.05.21"]
[Round "-"]
[White "Leonid_Starozhilov"]
[Black "MartinWalker4"]
[Result "1-0"]
[WhiteElo "2637"]
[BlackElo "2049"]
[TimeControl "300"]
[EndTime "6:30:00 PDT"]
[Termination "Leonid_Starozhilov won on time"]

1. b3 {[%clk 0:04:58.6]} 1... d5 {[%clk 0:04:53.1]} 2. Bb2 {[%clk 0:04:58.5]}
2... e6 {[%clk 0:04:51.8]} 3. Nf3 {[%clk 0:04:41]} 3... Nf6 {[%clk 0:04:50.3]}
4. e3 {[%clk 0:04:39.8]} 4... c5 {[%clk 0:04:49]} 5. d4 {[%clk 0:04:37.6]} 5...
Nc6 {[%clk 0:04:45.2]} 6. Be2 {[%clk 0:04:34]} 6... cxd4 {[%clk 0:04:43.1]} 7.
Nxd4 {[%clk 0:04:32.5]} 7... Bd6 {[%clk 0:04:32.7]} 8. O-O {[%clk 0:04:31]} 8...
O-O {[%clk 0:04:29.8]} 9. c4 {[%clk 0:04:29.6]} 9... dxc4 {[%clk 0:04:08.7]} 10.
Nxc6 {[%clk 0:04:26.4]} 10... bxc6 {[%clk 0:04:04.7]} 11. Bxc4 {[%clk 0:04:25]}
11... Qc7 {[%clk 0:03:56.1]} 12. h3 {[%clk 0:04:13.1]} 12... Be5 {[%clk
0:03:50.8]} 13. Nc3 {[%clk 0:04:11.1]} 13... Rd8 {[%clk 0:03:46.7]} 14. Qc2
{[%clk 0:04:09.9]} 14... Nd5 {[%clk 0:03:39.1]} 15. Rac1 {[%clk 0:04:05.6]}
15... Bb7 {[%clk 0:03:25.9]} 16. Rfd1 {[%clk 0:04:01]} 16... c5 {[%clk
0:03:11.3]} 17. Nb5 {[%clk 0:03:40.2]} 17... Qb8 {[%clk 0:03:10]} 18. Bxe5
{[%clk 0:03:38.6]} 18... Qxe5 {[%clk 0:03:08.1]} 19. Bf1 {[%clk 0:03:25.7]}
19... a6 {[%clk 0:02:52.5]} 20. Na3 {[%clk 0:03:21]} 20... Rac8 {[%clk
0:02:42.9]} 21. Nc4 {[%clk 0:03:18.3]} 21... Qc7 {[%clk 0:02:29.7]} 22. a3
{[%clk 0:03:13.9]} 22... Nf6 {[%clk 0:02:17.3]} 23. f3 {[%clk 0:03:01.2]} 23...
Qg3 {[%clk 0:02:08.8]} 24. Qf2 {[%clk 0:02:55.9]} 24... Qxf2+ {[%clk 0:01:57.4]}
25. Kxf2 {[%clk 0:02:52.6]} 25... Kf8 {[%clk 0:01:23.4]} 26. Rxd8+ {[%clk
0:02:47]} 26... Rxd8 {[%clk 0:01:21.9]} 27. e4 {[%clk 0:02:44.8]} 27... Nd7
{[%clk 0:01:01.6]} 28. Na5 {[%clk 0:02:35.3]} 28... Rb8 {[%clk 0:00:59.8]} 29.
Nxb7 {[%clk 0:02:27.3]} 29... Rxb7 {[%clk 0:00:57.8]} 30. Bxa6 {[%clk
0:02:26.9]} 30... Rxb3 {[%clk 0:00:55.9]} 31. Ra1 {[%clk 0:02:24.8]} 31... Ke7
{[%clk 0:00:52.6]} 32. a4 {[%clk 0:02:22.7]} 32... Kd6 {[%clk 0:00:50.2]} 33. a5
{[%clk 0:02:21.1]} 33... Kc7 {[%clk 0:00:49]} 34. Be2 {[%clk 0:02:17]} 34... Rb2
{[%clk 0:00:43.8]} 35. a6 {[%clk 0:02:14.9]} 35... Kb8 {[%clk 0:00:41.2]} 36. f4
{[%clk 0:02:10.4]} 36... Ka7 {[%clk 0:00:38.7]} 37. Ke3 {[%clk 0:02:09.2]} 37...
Nf6 {[%clk 0:00:34.2]} 38. Bd3 {[%clk 0:01:55.9]} 38... Nd7 {[%clk 0:00:26.4]}
39. e5 {[%clk 0:01:52.3]} 39... Nb6 {[%clk 0:00:24.3]} 40. g3 {[%clk 0:01:34.7]}
40... h6 {[%clk 0:00:15.9]} 41. h4 {[%clk 0:01:33.6]} 41... c4 {[%clk 0:00:14]}
42. Be4 {[%clk 0:01:30.7]} 42... Rb4 {[%clk 0:00:12.1]} 43. Bb7 {[%clk
0:01:27.5]} 43... Rb3+ {[%clk 0:00:10.5]} 44. Kd4 {[%clk 0:01:26.5]} 44... Rxg3
{[%clk 0:00:09]} 45. Kc5 {[%clk 0:01:22.7]} 45... Rg4 {[%clk 0:00:06.7]} 46. Rb1
{[%clk 0:01:20.7]} 46... Nd7+ {[%clk 0:00:03.2]} 47. Kd6 {[%clk 0:01:19.5]}
47... Nb8 {[%clk 0:00:01.5]} 48. Kc7 {[%clk 0:01:17.2]} 48... Nxa6+ {[%clk
0:00:00.2]} 49. Kc6 {[%clk 0:01:11.7]} 1-0

[Event "Live Chess"]
[Site "Chess.com"]
[Date "2023.05.21"]
[Round "-"]
[White "raminguy"]
[Black "YrrriKharkiv"]
[Result "0-1"]
[WhiteElo "1942"]
[BlackElo "2071"]
[TimeControl "300"]
[EndTime "6:30:06 PDT"]
[Termination "YrrriKharkiv won - game abandoned"]

1. d4 {[%clk 0:04:58.6]} 1... Nf6 {[%clk 0:04:57.7]} 2. Nc3 {[%clk 0:04:58.5]}
2... d5 {[%clk 0:04:55.4]} 3. Bf4 {[%clk 0:04:57.9]} 3... e6 {[%clk 0:04:53]} 4.
Nb5 {[%clk 0:04:56.5]} 4... Na6 {[%clk 0:04:51.5]} 5. e3 {[%clk 0:04:56]} 5...
c6 {[%clk 0:04:43.7]} 6. Nc3 {[%clk 0:04:55]} 6... Nc7 {[%clk 0:04:41.1]} 7. Nf3
{[%clk 0:04:53.9]} 7... Be7 {[%clk 0:04:37.2]} 8. Bd3 {[%clk 0:04:52]} 8... h6
{[%clk 0:04:34.8]} 9. Ne5 {[%clk 0:04:51]} 9... Nd7 {[%clk 0:04:23.1]} 10. Qg4
{[%clk 0:04:43.7]} 10... Nxe5 {[%clk 0:04:16.2]} 11. dxe5 {[%clk 0:04:37.9]}
11... g5 {[%clk 0:04:08.4]} 12. Bg3 {[%clk 0:04:30.8]} 12... f5 {[%clk
0:04:00.6]} 13. exf6 {[%clk 0:04:29.1]} 13... Bxf6 {[%clk 0:03:58.9]} 14. h4
{[%clk 0:04:21.5]} 14... e5 {[%clk 0:03:34.7]} 15. Qh5+ {[%clk 0:04:20.3]} 15...
Kf8 {[%clk 0:03:33.3]} 16. hxg5 {[%clk 0:04:18]} 16... Bxg5 {[%clk 0:03:17.8]}
17. Bxe5 {[%clk 0:04:14.8]} 17... Bf6 {[%clk 0:03:17.3]} 18. O-O-O {[%clk
0:04:01.1]} 18... Ne8 {[%clk 0:03:03.8]} 0-1